bitfinex-derivatives/quotes_BTCF0:USTF0_20240903
["timestamp","ask_amount","ask_price","bid_price","bid_amount"]
[1725375105258,0.20025985,57717.0,57716.0,0.387052]
[1725375105573,0.19025985,57717.0,57716.0,0.387052]
[1725375105865,0.19025985,57717.0,57716.0,0.96616228]
[1725375106163,0.19025985,57717.0,57716.0,0.87988849]
[1725375106464,0.19025985,57717.0,57716.0,0.087052]
[1725375106766,0.19025985,57717.0,57716.0,0.387052]
[1725375107170,0.19025985,57717.0,57716.0,0.83430265]
[1725375107466,0.19025985,57717.0,57716.0,0.747852]
[1725375107666,0.19025985,57717.0,57716.0,0.83430265]
[1725375108263,0.19025985,57717.0,57716.0,0.747852]
[1725375108867,0.00025985,57717.0,57716.0,0.96633876]
[1725375109175,0.00025985,57717.0,57716.0,0.87988811]
[1725375109468,0.00025985,57717.0,57716.0,0.96627386]
[1725375110083,0.00025985,57717.0,57716.0,1.05292586]
[1725375110368,0.086629,57732.0,57728.0,0.086634]
[1725375110567,0.086629,57732.0,57716.0,1.99941937]
[1725375110568,0.14,57732.0,57731.0,0.3004]
[1725375110783,0.14,57732.0,57731.0,0.38703]
[1725375111068,0.086625,57735.0,57731.0,0.38703]
[1725375111368,0.216624,57735.0,57734.0,0.0004]
[1725375111573,0.303248,57735.0,57734.0,0.0004]
[1725375111765,0.819872,57735.0,57734.0,0.0004]
[1725375111965,1.939472,57735.0,57734.0,0.0004]
[1725375112466,1.339472,57735.0,57734.0,0.0004]
[1725375112973,1.939472,57735.0,57734.0,0.0004]
[1725375113470,1.339472,57735.0,57734.0,0.0004]
[1725375114564,0.216624,57735.0,57734.0,0.0004]
[1725375114763,0.216624,57735.0,57734.0,0.3004]
[1725375115067,0.216624,57735.0,57734.0,0.0004]
[1725375115272,0.216624,57735.0,57734.0,0.387025]
[1725375115480,0.216624,57735.0,57734.0,0.0004]
[1725375115660,0.303248,57735.0,57734.0,0.0004]
[1725375117974,0.216624,57735.0,57734.0,0.0004]
[1725375118570,0.303248,57735.0,57734.0,0.0004]
[1725375119069,1.039472,57735.0,57734.0,0.0004]
[1725375119271,2.000272,57735.0,57734.0,0.0004]
[1725375119671,1.400272,57735.0,57734.0,0.0004]
[1725375120465,2.000272,57735.0,57734.0,0.0004]
[1725375121066,2.000272,57735.0,57727.0,0.00025985]
[1725375121067,0.259902,57728.0,57727.0,0.00025985]
[1725375121383,0.259902,57728.0,57727.0,8.5e-07]
[1725375121384,1.377336,57728.0,57727.0,8.5e-07]
[1725375121565,2.497016,57728.0,57727.0,8.5e-07]
[1725375122168,2.53049273,57728.0,57727.0,8.5e-07]
[1725375122371,0.17332,57711.0,57710.0,0.004]
[1725375122565,0.17332,57711.0,57695.0,0.447483]
[1725375122566,1.3716,57711.0,57695.0,0.8704]
[1725375122769,0.086676,57700.0,57695.0,0.87152]
[1725375122968,0.3608,57705.0,57701.0,0.3]
[1725375123175,0.086673,57702.0,57701.0,0.3]
[1725375123974,0.36168,57705.0,57699.0,0.16782883]
[1725375123975,0.3608,57705.0,57699.0,0.16782883]
[1725375124182,0.537469,57705.0,57699.0,0.25450583]
[1725375124382,0.537469,57705.0,57701.0,0.386675]
[1725375125078,0.00025985,57707.0,57704.0,0.3]
[1725375125385,0.086644,57722.0,57716.0,0.086651]
[1725375125676,0.266644,57722.0,57721.0,0.0004]
[1725375125883,0.18,57722.0,57721.0,0.0004]
[1725375126081,0.18,57722.0,57721.0,0.087045]
[1725375127376,0.00025985,57727.0,57723.0,0.086642]
[1725375127577,0.00025985,57727.0,57726.0,0.0004]
[1725375128084,0.00025985,57727.0,57726.0,0.09590793]
[1725375128285,0.00025985,57727.0,57726.0,0.087037]
[1725375128585,0.00025985,57727.0,57710.0,0.05181205]
[1725375128586,0.086649,57718.0,57710.0,0.05181205]
[1725375128775,0.834102,57717.0,57708.0,0.03132094]
[1725375128971,1.964162,57717.0,57700.0,0.1443]
[1725375129168,1.964162,57717.0,57705.0,0.086669]
[1725375129370,1.964162,57717.0,57703.0,0.086671]
[1725375129682,2.564162,57717.0,57704.0,0.08667]
[1725375130073,2.564162,57717.0,57706.0,0.03173609]
[1725375130778,2.6489917,57717.0,57706.0,0.03173609]
[1725375131576,2.564162,57717.0,57706.0,0.03173609]
[1725375132579,1.964162,57717.0,57706.0,0.03173609]
[1725375132778,2.564162,57717.0,57706.0,0.03173609]
[1725375133081,2.650813,57717.0,57706.0,0.03173609]
[1725375133276,2.650813,57717.0,57716.0,8.5e-07]
[1725375133479,2.68155646,57717.0,57716.0,8.5e-07]
[1725375133677,2.82495646,57717.0,57716.0,8.5e-07]
[1725375135078,0.260028,57700.0,57699.0,0.004]
[1725375135275,0.260028,57700.0,57692.0,5e-08]
[1725375135276,0.260061,57693.0,57692.0,5e-08]
[1725375135481,0.173398,57685.0,57679.0,0.1030393]
[1725375135784,0.960897,57685.0,57679.0,0.1030393]
[1725375135968,0.086706,57680.0,57679.0,0.10329915]
[1725375136279,1.074212,57680.0,57679.0,0.1350536]
[1725375136481,0.086718,57672.0,57671.0,0.1467]
[1725375136783,0.386713,57676.0,57672.0,0.086718]
[1725375137075,0.386713,57676.0,57671.0,0.17768635]
[1725375137076,0.173436,57672.0,57671.0,0.03098635]
[1725375137381,0.086726,57667.0,57666.0,0.00026008]
[1725375137684,0.386726,57667.0,57666.0,0.00026008]
[1725375138387,0.747526,57667.0,57666.0,0.00026008]
[1725375138879,0.907526,57667.0,57666.0,0.00026008]
[1725375140275,1.027526,57667.0,57666.0,0.00026008]
[1725375140779,1.05875139,57667.0,57666.0,0.00026008]
[1725375141186,1.027526,57667.0,57666.0,0.00026008]
[1725375141779,0.666726,57667.0,57666.0,0.00026008]
[1725375142077,0.16,57667.0,57666.0,0.08698708]
[1725375142984,0.4608,57667.0,57666.0,0.00026008]
[1725375143171,1.018326,57667.0,57666.0,0.00026008]
[1725375143372,1.105052,57667.0,57666.0,0.00026008]
[1725375143577,1.105052,57667.0,57653.0,0.1439]
[1725375143578,0.086745,57654.0,57653.0,0.1439]
[1725375143887,0.0108,57654.0,57653.0,0.230647]
[1725375144081,0.0008,57654.0,57653.0,0.591447]
[1725375144384,0.0008,57654.0,57653.0,0.230647]
[1725375144778,0.0008,57654.0,57653.0,0.56218483]
[1725375144981,0.086728,57666.0,57653.0,0.56218483]
[1725375144982,0.3,57674.0,57654.0,0.52032]
[1725375145172,0.13,57673.0,57661.0,0.6608]
[1725375145484,0.21,57673.0,57661.0,0.6608]
[1725375145786,0.086718,57672.0,57667.0,0.086725]
[1725375145978,0.3,57670.0,57667.0,0.086725]
[1725375146179,0.5,57670.0,57663.0,0.08699008]
[1725375146374,0.3,57667.0,57665.0,0.086728]
[1725375146583,0.3,57667.0,57663.0,0.00026008]
[1725375146584,0.42,57667.0,57663.0,0.00026008]
[1725375146787,0.08673,57664.0,57663.0,0.00026008]
[1725375147080,0.46673,57664.0,57663.0,0.00026008]
[1725375147282,0.55346,57664.0,57663.0,0.00026008]
[1725375148275,0.58536645,57664.0,57663.0,0.00026008]
[1725375149985,1.79233645,57664.0,57663.0,0.00026008]
[1725375150201,0.260235,57654.0,57653.0,0.0008]
[1725375150389,1.3916,57654.0,57636.0,0.1426]
[1725375150581,0.086767,57640.0,57638.0,0.086769]
[1725375150781,0.086768,57639.0,57638.0,0.086769]
[1725375151079,0.086763,57643.0,57637.0,0.4791655]
[1725375151286,0.086765,57641.0,57637.0,0.4791655]
[1725375151488,0.3608,57638.0,57637.0,0.0315945]
[1725375151681,0.3608,57638.0,57633.0,0.00026008]
[1725375151682,0.086776,57634.0,57633.0,0.00026008]
[1725375151880,0.386776,57634.0,57633.0,0.00026008]
[1725375152281,0.386776,57634.0,57633.0,0.03205771]
[1725375152282,0.663552,57634.0,57633.0,0.03205771]
[1725375152487,0.576776,57634.0,57633.0,0.00026008]
[1725375153196,0.00096,57638.0,57633.0,1.12078008]
[1725375153493,0.00026008,57644.0,57639.0,0.086768]
[1725375153679,0.00026008,57644.0,57640.0,0.1368]
[1725375153680,0.086763,57642.0,57640.0,0.1368]
[1725375153988,0.086763,57642.0,57634.0,1.44538]
[1725375153989,0.086774,57635.0,57634.0,0.00088]
[1725375154195,0.086776,57634.0,57633.0,0.00026008]
[1725375154386,0.326776,57634.0,57633.0,0.00026008]
[1725375154888,1.47052,57634.0,57613.0,0.3]
[1725375155183,0.086801,57617.0,57613.0,0.3]
[1725375155388,0.086801,57617.0,57614.0,0.086805]
[1725375155575,0.086797,57620.0,57616.0,0.086801]
[1725375155781,0.086799,57619.0,57616.0,0.086801]
[1725375155979,0.3608,57623.0,57617.0,0.086801]
[1725375156298,0.3908,57623.0,57617.0,0.086801]
[1725375156798,0.5108,57623.0,57617.0,0.086801]
[1725375156987,0.5808,57623.0,57617.0,0.086801]
[1725375157181,0.0868,57618.0,57614.0,0.086805]
[1725375157377,0.4708,57618.0,57612.0,0.03066011]
[1725375157682,0.3608,57613.0,57610.0,0.138]
[1725375157882,0.40999559,57613.0,57610.0,0.138]
[1725375158087,0.0008,57611.0,57610.0,0.224811]
[1725375158277,0.0008,57611.0,57610.0,0.138]
[1725375158477,0.08681,57611.0,57610.0,0.03202964]
[1725375158681,0.086812,57610.0,57609.0,0.1447]
[1725375158886,0.29999559,57613.0,57609.0,0.1447]
[1725375159089,0.29999559,57613.0,57612.0,0.086809]
[1725375159895,0.3608,57624.0,57612.0,0.82072]
[1725375160097,0.03118881,57634.0,57621.0,0.3]
[1725375160281,0.086785,57628.0,57625.0,0.086789]
[1725375160481,0.3,57636.0,57625.0,0.386789]
[1725375160793,0.3608,57638.0,57625.0,1.868189]
[1725375160995,0.3,57637.0,57628.0,0.086783]
[1725375161187,0.3,57633.0,57625.0,0.3608]
[1725375161494,0.3,57628.0,57624.0,0.086789]
[1725375161790,0.9608,57628.0,57622.0,0.1374]
[1725375161996,0.21,57628.0,57625.0,0.6608]
[1725375162187,0.1,57628.0,57627.0,0.086786]
[1725375162601,0.0002603,57631.0,57627.0,1.4814]
[1725375162900,0.0087,57648.0,57630.0,0.6608]
[1725375163087,0.196755,57648.0,57640.0,0.3]
[1725375163288,0.1463,57657.0,57637.0,0.3608]
[1725375163289,0.086738,57659.0,57651.0,0.086749]
[1725375163500,0.086738,57659.0,57645.0,0.3]
[1725375163501,0.3608,57656.0,57646.0,0.086757]
[1725375163692,0.3608,57656.0,57637.0,0.3608]
[1725375163693,0.3008,57647.0,57637.0,0.3608]
[1725375163889,0.3008,57647.0,57630.0,0.00863201]
[1725375163890,0.086771,57637.0,57630.0,0.00863201]
[1725375164094,0.36,57637.0,57628.0,0.11853687]
[1725375164393,0.36,57637.0,57630.0,0.086782]
[1725375165296,0.36,57637.0,57629.0,0.3608]
[1725375165297,0.3,57633.0,57629.0,0.3608]
[1725375165500,0.53,57633.0,57629.0,0.3608]
[1725375165684,0.23,57633.0,57630.0,0.086781]
[1725375166595,0.13,57633.0,57630.0,0.086781]
[1725375167389,0.13,57633.0,57632.0,0.086779]
[1725375167688,0.0002603,57638.0,57637.0,0.086771]
[1725375167890,0.0002603,57638.0,57637.0,0.687171]
[1725375168097,0.0002603,57638.0,57637.0,1.207651]
[1725375168487,0.0002603,57638.0,57637.0,2.078051]
[1725375168688,0.386741,57657.0,57646.0,0.086757]
[1725375168997,0.086741,57657.0,57646.0,0.747957]
[1725375169205,0.086741,57657.0,57646.0,1.868357]
[1725375169700,0.0002603,57652.0,57646.0,1.868357]
[1725375170088,0.0808,57647.0,57646.0,0.087157]
[1725375170294,0.0808,57647.0,57646.0,0.11856305]
[1725375170499,0.0008,57647.0,57646.0,1.53896305]
[1725375170907,0.3608,57665.0,57646.0,2.40936305]
[1725375171203,0.6608,57670.0,57664.0,0.08713]
[1725375171520,0.6608,57670.0,57669.0,0.0004]
[1725375171521,0.08,57670.0,57669.0,0.0004]
[1725375171691,0.166721,57670.0,57669.0,0.0004]
[1725375172402,0.086721,57670.0,57669.0,0.0004]
[1725375172791,0.196721,57670.0,57669.0,0.0004]
[1725375173705,0.11,57670.0,57669.0,0.087123]
[1725375174101,0.196721,57670.0,57669.0,0.0004]
[1725375174492,0.24,57670.0,57669.0,0.03178358]
[1725375174697,0.24,57670.0,57669.0,0.0004]
[1725375175098,0.0002603,57675.0,57669.0,0.3004]
[1725375175317,0.0002603,57675.0,57674.0,0.087115]
[1725375175318,0.1202603,57675.0,57674.0,0.087115]
[1725375175612,1e-08,57675.0,57674.0,0.968075]
[1725375175805,1e-08,57675.0,57674.0,1.568075]
[1725375176595,1e-08,57675.0,57674.0,2.438475]
[1725375176899,1e-08,57675.0,57674.0,2.52519]
[1725375177309,1e-08,57675.0,57674.0,2.611905]
[1725375177500,0.086687,57693.0,57688.0,0.086693]
[1725375177699,0.086687,57693.0,57692.0,0.0004]
[1725375178203,0.196687,57693.0,57692.0,0.0004]
[1725375178399,0.306687,57693.0,57692.0,0.0004]
[1725375178706,0.336687,57693.0,57692.0,0.0004]
[1725375178903,0.423374,57693.0,57692.0,0.0004]
[1725375179400,0.336687,57693.0,57692.0,0.0004]
[1725375179800,0.00026008,57698.0,57692.0,0.087088]
[1725375180114,0.086685,57695.0,57693.0,0.086687]
[1725375180611,0.086685,57695.0,57691.0,0.36955848]
[1725375180811,0.0004,57692.0,57691.0,0.45624748]
[1725375181112,0.0004,57692.0,57691.0,0.75624748]
[1725375181302,0.0004,57692.0,57691.0,0.45624748]
[1725375182007,0.0004,57692.0,57691.0,0.48760934]
[1725375182208,0.087088,57692.0,57691.0,0.40092034]
[1725375182504,0.087088,57692.0,57691.0,0.03136186]
[1725375182706,0.087088,57692.0,57687.0,0.00026008]
[1725375182707,0.173388,57688.0,57687.0,0.00026008]
[1725375182904,0.773788,57688.0,57687.0,0.00026008]
[1725375183302,0.860482,57688.0,57687.0,0.00026008]
[1725375183502,0.773788,57688.0,57687.0,0.00026008]
[1725375186304,0.086697,57687.0,57673.0,0.447517]
[1725375186507,0.086697,57687.0,57668.0,1.3684]
[1725375186508,0.3004,57674.0,57669.0,0.8704]
[1725375186709,0.0004,57670.0,57666.0,0.086727]
[1725375186909,0.087126,57667.0,57666.0,0.086727]
[1725375187109,0.176726,57667.0,57666.0,0.086727]
[1725375187608,0.176726,57667.0,57666.0,0.03102688]
[1725375187813,0.19,57667.0,57666.0,0.086727]
[1725375190212,0.276726,57667.0,57666.0,0.086727]
[1725375190514,0.19,57667.0,57664.0,0.3608]
[1725375190719,0.19,57667.0,57666.0,0.086727]
[1725375190907,0.1,57667.0,57666.0,0.086727]
[1725375191109,0.1,57667.0,57666.0,0.606967]
[1725375191517,0.1,57667.0,57666.0,1.293694]
[1725375191713,0.1,57667.0,57666.0,1.206967]
[1725375192216,0.1,57667.0,57666.0,2.077367]
[1725375192921,0.1,57667.0,57666.0,0.957127]
[1725375193116,0.15,57667.0,57666.0,0.957127]
[1725375194008,0.1,57667.0,57666.0,0.957127]
[1725375194511,0.1,57667.0,57666.0,2.077367]
[1725375195423,0.00026008,57672.0,57671.0,0.08672]
[1725375195734,0.0004,57674.0,57673.0,0.173434]
[1725375196013,0.086689,57692.0,57685.0,0.3]
[1725375196014,0.086694,57689.0,57685.0,0.3]
[1725375196213,0.086694,57689.0,57688.0,0.087094]
[1725375196214,0.12,57689.0,57688.0,0.087094]
[1725375196419,0.316693,57689.0,57688.0,0.0004]
[1725375196914,0.17,57689.0,57688.0,0.087094]
[1725375197114,0.17,57689.0,57688.0,0.20439123]
[1725375197314,0.00026008,57694.0,57693.0,0.086687]
[1725375197523,0.00026008,57694.0,57693.0,0.84304023]
[1725375197715,0.08425509,57714.0,57695.0,0.086684]
[1725375198019,0.10157608,57725.0,57695.0,0.086684]
[1725375198020,0.07653489,57723.0,57712.0,0.6608]
[1725375198218,0.07653489,57723.0,57722.0,0.0004]
[1725375198219,0.08190001,57723.0,57722.0,0.0004]
[1725375201617,0.00016701,57728.0,57727.0,0.086636]
[1725375201914,0.00016701,57728.0,57727.0,0.6612]
[1725375202315,0.00016701,57728.0,57727.0,0.67006313]
[1725375202713,0.00016701,57728.0,57727.0,0.70137712]
[1725375202921,0.00016701,57728.0,57727.0,0.69251399]
[1725375203317,0.00016701,57728.0,57727.0,0.70100848]
[1725375203524,0.00016701,57728.0,57727.0,0.78764448]
[1725375205117,0.08680101,57728.0,57727.0,0.39251399]
[1725375205518,0.08680101,57728.0,57727.0,0.03171399]
[1725375206830,0.20680101,57728.0,57727.0,0.03171399]
[1725375207917,0.43680101,57728.0,57727.0,0.03171399]
[1725375208621,0.43680101,57728.0,57727.0,0.0004]
[1725375209536,0.43680101,57728.0,57727.0,0.3004]
[1725375210131,0.43680101,57728.0,57727.0,0.0004]
[1725375213326,0.63123501,57728.0,57727.0,0.0004]
[1725375213828,0.259947,57718.0,57717.0,0.00026008]
[1725375214035,0.086669,57705.0,57704.0,0.3608]
[1725375214330,0.086678,57699.0,57698.0,0.8714]
[1725375214538,0.097078,57699.0,57698.0,0.957079]
[1725375214735,0.097078,57699.0,57698.0,0.8704]
[1725375214935,0.097078,57699.0,57693.0,0.86228]
[1725375214936,0.127078,57699.0,57693.0,0.30088]
[1725375215232,0.0004,57694.0,57693.0,0.386686]
[1725375215421,0.0004,57694.0,57693.0,0.77840486]
[1725375215827,0.0004,57694.0,57693.0,1.89840486]
[1725375216029,0.08133285,57703.0,57693.0,0.69171886]
[1725375216231,0.42133285,57703.0,57702.0,0.3]
[1725375218033,0.34,57703.0,57694.0,0.3]
[1725375218232,0.086685,57694.0,57693.0,0.39171886]
[1725375218428,0.086685,57694.0,57693.0,0.03091886]
[1725375218429,0.17331961,57694.0,57693.0,0.03091886]
[1725375218629,0.17231961,57694.0,57690.0,0.38695085]
[1725375218939,0.13,57694.0,57693.0,0.3]
[1725375219145,0.13,57694.0,57693.0,0.386687]
[1725375219834,0.216685,57694.0,57693.0,0.386687]
[1725375220135,0.211685,57694.0,57693.0,0.386687]
[1725375220636,0.211685,57694.0,57693.0,0.3]
[1725375220943,0.211685,57694.0,57690.0,0.03118236]
[1725375220944,0.17238,57691.0,57690.0,0.03118236]
[1725375221237,0.17238,57691.0,57679.0,0.419]
[1725375221238,0.086702,57683.0,57675.0,1.1704]
[1725375221436,0.3,57681.0,57673.0,0.447517]
[1725375221749,0.086708,57680.0,57676.0,0.086712]
[1725375221939,0.11,57680.0,57676.0,0.086712]
[1725375222141,0.11,57680.0,57673.0,0.6608]
[1725375222142,0.14,57680.0,57673.0,0.6608]
[1725375222344,0.14,57680.0,57673.0,0.69224719]
[1725375222838,0.086714,57675.0,57673.0,0.69224719]
[1725375223028,0.086715,57674.0,57673.0,0.69224719]
[1725375223229,0.08671,57678.0,57673.0,0.03144719]
[1725375223437,0.085711,57677.0,57673.0,0.386717]
[1725375223639,0.086712,57676.0,57675.0,0.3608]
[1725375223844,0.196712,57676.0,57673.0,0.386716]
[1725375224238,0.014,57675.0,57673.0,0.386716]
[1725375224438,0.074,57675.0,57673.0,0.386716]
[1725375225152,0.06,57675.0,57674.0,0.086715]
[1725375225732,0.057,57675.0,57674.0,0.086715]
[1725375226540,0.069,57675.0,57674.0,0.087715]
[1725375227639,0.083,57675.0,57674.0,0.387715]
[1725375228242,0.069,57675.0,57674.0,0.387715]
[1725375228441,0.083,57675.0,57674.0,0.387715]
[1725375228744,0.026,57675.0,57674.0,0.387715]
[1725375230440,0.026,57675.0,57674.0,0.001]
[1725375230441,0.172714,57675.0,57674.0,0.001]
[1725375231150,0.390714,57675.0,57674.0,0.001]
[1725375231347,0.402714,57675.0,57674.0,0.001]
[1725375232646,0.316,57675.0,57674.0,0.387715]
[1725375239146,0.402714,57675.0,57674.0,0.001]
[1725375239648,0.515214,57675.0,57674.0,0.001]
[1725375239848,0.601928,57675.0,57674.0,0.001]
[1725375240059,1.685802,57675.0,57674.0,0.001]
[1725375240269,1.685802,57675.0,57655.0,0.090743]
[1725375240270,0.086742,57656.0,57655.0,0.090743]
[1725375240455,0.106742,57656.0,57655.0,0.086743]
[1725375240751,0.086744,57655.0,57654.0,0.3608]
[1725375241158,0.196744,57655.0,57654.0,0.39145972]
[1725375241547,0.196744,57655.0,57654.0,0.03065972]
[1725375241548,0.296744,57655.0,57654.0,0.03065972]
[1725375241747,0.086751,57650.0,57649.0,0.00026008]
[1725375241952,0.787551,57650.0,57649.0,0.00026008]
[1725375242153,0.787551,57650.0,57646.0,0.0024]
[1725375242154,0.086756,57647.0,57646.0,0.0024]
[1725375242460,0.813512,57647.0,57646.0,0.0024]
[1725375242664,1.333912,57647.0,57646.0,0.0024]
[1725375242853,1.933912,57647.0,57646.0,0.0024]
[1725375243053,1.931912,57647.0,57646.0,0.0024]
[1725375243260,0.511512,57647.0,57646.0,0.0024]
[1725375243453,0.314756,57647.0,57646.0,0.0024]
[1725375244360,0.313756,57647.0,57646.0,0.0024]
[1725375244562,0.443756,57647.0,57646.0,0.0024]
[1725375245466,0.457756,57647.0,57646.0,0.0024]
[1725375246167,0.471756,57647.0,57646.0,0.0024]
[1725375246668,1.064912,57647.0,57646.0,0.0024]
[1725375246964,1.078912,57647.0,57646.0,0.0024]
[1725375247164,0.471756,57647.0,57646.0,0.0024]
[1725375247558,0.470756,57647.0,57646.0,0.0024]
[1725375249368,0.471756,57647.0,57646.0,0.0024]
[1725375249967,1.078912,57647.0,57646.0,0.0024]
[1725375250167,1.678912,57647.0,57646.0,0.0024]
[1725375250366,1.678912,57647.0,57641.0,0.00026008]
[1725375250367,0.086763,57642.0,57641.0,0.00026008]
[1725375250573,1.174326,57642.0,57641.0,0.00026008]
[1725375251778,1.708766,57642.0,57641.0,0.00026008]
[1725375251980,1.188326,57642.0,57641.0,0.00026008]
[1725375252777,0.888326,57642.0,57641.0,0.00026008]
[1725375253187,1.188326,57642.0,57641.0,0.00026008]
[1725375253374,0.086776,57634.0,57626.0,1.2312]
[1725375253575,0.726776,57634.0,57627.0,0.086786]
[1725375253874,0.08678,57632.0,57630.0,0.086781]
[1725375254074,0.08678,57631.0,57630.0,0.086781]
[1725375254271,0.41678,57631.0,57630.0,0.086781]
[1725375254786,0.086786,57627.0,57626.0,0.00088]
[1725375254988,0.35,57627.0,57625.0,0.00026008]
[1725375255280,0.086788,57626.0,57625.0,0.00026008]
[1725375255580,0.456788,57626.0,57625.0,0.00026008]
[1725375255782,0.456788,57626.0,57625.0,0.38704908]
[1725375255988,0.457588,57626.0,57625.0,0.30026008]
[1725375256288,0.457588,57626.0,57625.0,0.00026008]
[1725375256289,0.3708,57626.0,57625.0,0.00026008]
[1725375256488,0.3708,57626.0,57625.0,0.30026008]
[1725375256792,0.2408,57626.0,57625.0,0.38704908]
[1725375257382,0.38680203,57626.0,57625.0,0.00026008]
[1725375257587,0.39180203,57626.0,57625.0,0.03074242]
[1725375257887,0.30501403,57626.0,57625.0,0.38704908]
[1725375258475,0.31001403,57626.0,57625.0,0.38704908]
[1725375258684,0.31001403,57626.0,57625.0,0.08704908]
[1725375261178,0.00026008,57632.0,57631.0,0.17356]
[1725375261381,0.086758,57646.0,57634.0,0.086775]
[1725375261584,0.37,57646.0,57641.0,0.24]
[1725375261789,0.24,57643.0,57634.0,0.05155756]
[1725375262083,0.63,57643.0,57635.0,0.24]
[1725375262489,0.08677,57638.0,57635.0,0.326774]
[1725375262679,0.36,57638.0,57636.0,0.086772]
[1725375262886,0.36,57638.0,57637.0,0.24]
[1725375263076,0.36,57638.0,57637.0,0.326771]
[1725375263482,0.3165899,57638.0,57637.0,0.326771]
[1725375263685,0.3165899,57638.0,57637.0,0.086771]
[1725375264198,0.3165899,57638.0,57637.0,0.326771]
[1725375264688,0.3165899,57638.0,57637.0,0.447571]
[1725375264891,0.3305899,57638.0,57637.0,0.447571]
[1725375265389,0.3445899,57638.0,57637.0,0.448571]
[1725375265586,0.3445899,57638.0,57637.0,0.449571]
[1725375267084,0.124,57638.0,57637.0,1.62060856]
[1725375267283,0.132,57638.0,57637.0,1.62060856]
[1725375267487,0.132,57638.0,57637.0,1.569051]
[1725375267893,0.132,57638.0,57637.0,0.448571]
[1725375268093,0.124,57638.0,57637.0,0.448571]
[1725375268387,0.144,57638.0,57637.0,0.448571]
[1725375268891,0.134,57638.0,57637.0,0.447571]
[1725375269087,0.14,57638.0,57637.0,0.448571]
[1725375269487,0.14,57638.0,57637.0,0.5807884]
[1725375269690,0.142,57638.0,57637.0,0.66729085]
[1725375269991,0.142,57638.0,57637.0,0.448571]
[1725375270187,0.134,57638.0,57637.0,0.447571]
[1725375270488,0.142,57638.0,57637.0,0.448571]
[1725375270790,0.143,57638.0,57637.0,0.448571]
[1725375271188,0.143,57638.0,57637.0,0.66729073]
[1725375271590,0.143,57638.0,57637.0,0.448571]
[1725375271784,0.23177,57638.0,57637.0,0.448571]
[1725375272183,0.23177,57638.0,57637.0,0.3618]
[1725375272486,0.23177,57638.0,57637.0,0.3608]
[1725375272685,0.62954,57638.0,57637.0,0.001]
[1725375273090,0.30277,57638.0,57637.0,0.001]
[1725375273293,0.218,57638.0,57637.0,0.001]
[1725375273488,0.218,57638.0,57637.0,0.087771]
[1725375273789,0.218,57638.0,57637.0,0.3618]
[1725375273994,0.219,57638.0,57637.0,0.3618]
[1725375274287,0.219,57638.0,57637.0,0.448571]
[1725375274288,0.149,57638.0,57637.0,0.448571]
[1725375274498,0.129,57638.0,57637.0,0.448571]
[1725375274985,0.129,57638.0,57637.0,0.447571]
[1725375274986,0.11,57638.0,57637.0,0.447571]
[1725375275189,0.131,57638.0,57637.0,0.448571]
[1725375275395,0.4918,57638.0,57637.0,0.001]
[1725375275582,0.4918,57638.0,57634.0,0.0519457]
[1725375275583,0.086774,57635.0,57634.0,0.0519457]
[1725375275780,0.259328,57634.0,57633.0,0.00026008]
[1725375275990,1.623872,57634.0,57633.0,0.00026008]
[1725375276379,1.622872,57634.0,57633.0,0.00026008]
[1725375276583,1.102352,57634.0,57633.0,0.00026008]
[1725375276888,2.222872,57634.0,57633.0,0.00026008]
[1725375277186,2.236872,57634.0,57633.0,0.00126008]
[1725375277594,1.029576,57634.0,57633.0,0.00126008]
[1725375278093,1.042576,57634.0,57633.0,0.00126008]
[1725375278293,1.129352,57634.0,57633.0,0.00126008]
[1725375278491,2.336648,57634.0,57633.0,0.00126008]
[1725375279095,1.129352,57634.0,57633.0,0.00126008]
[1725375279288,0.257,57634.0,57633.0,0.08803708]
[1725375279485,0.147,57634.0,57633.0,0.08803708]
[1725375280287,0.233776,57634.0,57633.0,0.11918206]
[1725375280792,0.147,57634.0,57633.0,0.11918206]
[1725375281187,0.027,57634.0,57633.0,0.11918206]
[1725375281988,0.027,57634.0,57633.0,0.03240506]
[1725375281989,0.303776,57634.0,57633.0,0.03240506]
[1725375282205,0.303776,57634.0,57633.0,0.00126008]
[1725375282206,0.460552,57634.0,57633.0,0.00126008]
[1725375282694,0.373776,57634.0,57633.0,0.00126008]
[1725375283302,0.287,57634.0,57633.0,0.08803708]
[1725375283602,0.237,57634.0,57633.0,0.08803708]
[1725375283797,0.217,57634.0,57633.0,0.08803708]
[1725375285599,0.287,57634.0,57633.0,0.08803708]
[1725375286189,0.217,57634.0,57633.0,0.08803708]
[1725375286590,0.313776,57634.0,57633.0,0.05320578]
[1725375286790,0.313776,57634.0,57633.0,0.00126008]
[1725375286991,0.400552,57634.0,57633.0,0.00126008]
[1725375287209,1.007848,57634.0,57633.0,0.00126008]
[1725375287398,1.607848,57634.0,57633.0,0.00126008]
[1725375288709,1.087328,57634.0,57633.0,0.00126008]
[1725375289004,1.847848,57634.0,57633.0,0.00126008]
[1725375289207,1.87959569,57634.0,57633.0,0.00126008]
[1725375289396,1.35907569,57634.0,57633.0,0.00126008]
[1725375289596,0.75907569,57634.0,57633.0,0.00126008]
[1725375292305,0.75907569,57634.0,57627.0,0.03178032]
[1725375292306,0.17357,57628.0,57627.0,0.03178032]
[1725375292498,0.086788,57626.0,57625.0,0.0008]
[1725375292698,0.427188,57626.0,57625.0,0.03269465]
[1725375292906,0.34,57626.0,57625.0,0.087589]
[1725375293109,0.12,57626.0,57625.0,1.381767]
[1725375293411,0.0004,57628.0,57627.0,0.173572]
[1725375293604,0.0624,57628.0,57627.0,1.50069766]